[Event "Titled Tuesday Blitz August 15 Late 2023"]
[White "Matinian, Nikita"]
[Black "Poltorak, Sebastian"]
[WhiteFideId "24129100"]
[BlackFideId "1199498"]
[WhiteElo "2721"]
[BlackElo "2567"]
[Result "1-0"]
[Round "9"]
[TimeControl "180+1"]
[Date "2023.08.15"]
[WhiteClock "0:00:29"]
[BlackClock "0:00:01"]
[Board "23"]

1. e4 {[%clk 0:02:56]}  c5 {[%clk 0:02:59]} 2. Nf3 {[%clk 0:02:55]}  Nc6 {[%clk 0:02:59]} 3. Bb5 {[%clk 0:02:55]}  g6 {[%clk 0:02:55]} 4. O-O {[%clk 0:02:55]}  Bg7 {[%clk 0:02:54]} 5. d3 {[%clk 0:02:56]}  e5 {[%clk 0:02:48]} 6. a3 {[%clk 0:02:56]}  Nge7 {[%clk 0:02:46]} 7. b4 {[%clk 0:02:56]}  b6 {[%clk 0:02:42]} 8. bxc5 {[%clk 0:02:49]}  bxc5 {[%clk 0:02:42]} 9. Bg5 {[%clk 0:02:46]}  f6 {[%clk 0:02:38]} 10. Be3 {[%clk 0:02:44]}  d6 {[%clk 0:02:35]} 11. Bc4 {[%clk 0:02:40]}  Nd4 {[%clk 0:02:33]} 12. Nbd2 {[%clk 0:02:24]}  Ne6 {[%clk 0:02:29]} 13. c3 {[%clk 0:02:22]}  O-O {[%clk 0:02:25]} 14. Qb3 {[%clk 0:02:22]}  Qd7 {[%clk 0:02:26]} 15. d4 {[%clk 0:02:15]}  cxd4 {[%clk 0:02:02]} 16. cxd4 {[%clk 0:02:16]}  Kh8 {[%clk 0:02:02]} 17. dxe5 {[%clk 0:01:58]}  dxe5 {[%clk 0:01:55]} 18. Rfd1 {[%clk 0:01:58]}  Nf4 {[%clk 0:01:50]} 19. Bxf4 {[%clk 0:01:46]}  exf4 {[%clk 0:01:50]} 20. e5 {[%clk 0:01:46]}  fxe5 {[%clk 0:01:37]} 21. Ne4 {[%clk 0:01:46]}  Qf5 {[%clk 0:01:25]} 22. Nd6 {[%clk 0:01:46]}  Qf6 {[%clk 0:01:24]} 23. Nf7+ {[%clk 0:01:12]}  Rxf7 {[%clk 0:01:23]} 24. Bxf7 {[%clk 0:01:13]}  Bg4 {[%clk 0:01:23]} 25. h3 {[%clk 0:01:03]}  Bxf3 {[%clk 0:01:16]} 26. Qxf3 {[%clk 0:01:03]}  Rf8 {[%clk 0:01:04]} 27. Bd5 {[%clk 0:01:01]}  Nf5 {[%clk 0:00:51]} 28. Be4 {[%clk 0:01:01]}  Nd4 {[%clk 0:00:49]} 29. Qg4 {[%clk 0:00:57]}  Qa6 {[%clk 0:00:37]} 30. a4 {[%clk 0:00:48]}  f3 {[%clk 0:00:32]} 31. Bxf3 {[%clk 0:00:44]}  Rf4 {[%clk 0:00:18]} 32. Qd7 {[%clk 0:00:44]}  Nxf3+ {[%clk 0:00:16]} 33. gxf3 {[%clk 0:00:45]}  Qe2 {[%clk 0:00:07]} 34. Qd3 {[%clk 0:00:41]}  Qb2 {[%clk 0:00:05]} 35. Rab1 {[%clk 0:00:39]}  Qa2 {[%clk 0:00:06]} 36. Rb8+ {[%clk 0:00:38]}  Bf8 {[%clk 0:00:06]} 37. Qd6 {[%clk 0:00:31]}  Kg7 {[%clk 0:00:03]} 38. Qxe5+ {[%clk 0:00:29]}  Rf6 {[%clk 0:00:01]} 39. Rxf8 {[%clk 0:00:29]} 1-0


[Site "https://www.chess.com"]

[Event "Titled Tuesday Blitz August 15 Late 2023"]
[White "Morefield, Jason"]
[Black "Grebeniuk, Semen"]
[WhiteFideId "30920825"]
[BlackFideId "14117509"]
[WhiteElo "2737"]
[BlackElo "2530"]
[Result "1/2-1/2"]
[Round "9"]
[TimeControl "180+1"]
[Date "2023.08.15"]
[WhiteClock "0:00:04"]
[BlackClock "0:00:05"]
[Board "31"]

1. e4 {[%clk 0:02:58]}  c5 {[%clk 0:02:56]} 2. Nf3 {[%clk 0:02:58]}  Nc6 {[%clk 0:02:56]} 3. Bb5 {[%clk 0:02:59]}  g6 {[%clk 0:02:57]} 4. Bxc6 {[%clk 0:02:59]}  dxc6 {[%clk 0:02:57]} 5. O-O {[%clk 0:03:00]}  Bg7 {[%clk 0:02:58]} 6. Re1 {[%clk 0:03:00]}  e5 {[%clk 0:02:58]} 7. a3 {[%clk 0:03:00]}  Qe7 {[%clk 0:02:58]} 8. d3 {[%clk 0:02:59]}  Nf6 {[%clk 0:02:58]} 9. b4 {[%clk 0:03:00]}  Nd7 {[%clk 0:02:57]} 10. bxc5 {[%clk 0:02:59]}  Nxc5 {[%clk 0:02:58]} 11. a4 {[%clk 0:02:59]}  Ne6 {[%clk 0:02:56]} 12. Ba3 {[%clk 0:02:58]}  c5 {[%clk 0:02:55]} 13. Nbd2 {[%clk 0:02:58]}  O-O {[%clk 0:02:40]} 14. Nc4 {[%clk 0:02:56]}  Nd4 {[%clk 0:02:40]} 15. Nxd4 {[%clk 0:02:55]}  exd4 {[%clk 0:02:39]} 16. a5 {[%clk 0:02:51]}  Be6 {[%clk 0:02:38]} 17. Nd2 {[%clk 0:02:50]}  b5 {[%clk 0:02:35]} 18. f4 {[%clk 0:02:44]}  b4 {[%clk 0:02:34]} 19. Bc1 {[%clk 0:02:40]}  Qd7 {[%clk 0:02:29]} 20. h3 {[%clk 0:02:36]}  f5 {[%clk 0:02:28]} 21. Qe2 {[%clk 0:02:24]}  Rac8 {[%clk 0:02:17]} 22. e5 {[%clk 0:02:11]}  Rfd8 {[%clk 0:02:10]} 23. Bb2 {[%clk 0:02:04]}  Bd5 {[%clk 0:02:02]} 24. a6 {[%clk 0:01:55]}  Qe6 {[%clk 0:01:52]} 25. Ra5 {[%clk 0:01:53]}  Bf8 {[%clk 0:01:53]} 26. Nc4 {[%clk 0:01:31]}  Bxc4 {[%clk 0:01:43]} 27. dxc4 {[%clk 0:01:31]}  Rc6 {[%clk 0:01:44]} 28. Rea1 {[%clk 0:01:28]}  Rb8 {[%clk 0:01:43]} 29. Qf3 {[%clk 0:01:27]}  Rbb6 {[%clk 0:01:38]} 30. Qd5 {[%clk 0:01:21]}  Kf7 {[%clk 0:01:29]} 31. Kh2 {[%clk 0:01:00]}  Be7 {[%clk 0:01:28]} 32. Bc1 {[%clk 0:00:50]}  Rb8 {[%clk 0:01:22]} 33. Bd2 {[%clk 0:00:42]}  Rd8 {[%clk 0:01:22]} 34. Qf3 {[%clk 0:00:42]}  h5 {[%clk 0:01:16]} 35. Be1 {[%clk 0:00:21]}  Rb6 {[%clk 0:01:14]} 36. Rb5 {[%clk 0:00:15]}  Rdb8 {[%clk 0:01:04]} 37. Rxb6 {[%clk 0:00:08]}  Rxb6 {[%clk 0:01:05]} 38. Qa8 {[%clk 0:00:06]}  Rxa6 {[%clk 0:00:37]} 39. Rxa6 {[%clk 0:00:06]}  Qxa6 {[%clk 0:00:38]} 40. Qh8 {[%clk 0:00:06]}  Bf8 {[%clk 0:00:32]} 41. Bh4 {[%clk 0:00:04]}  Qe6 {[%clk 0:00:24]} 42. Qh7+ {[%clk 0:00:04]}  Ke8 {[%clk 0:00:21]} 43. Qxa7 {[%clk 0:00:04]}  Be7 {[%clk 0:00:18]} 44. Bxe7 {[%clk 0:00:03]}  Qxe7 {[%clk 0:00:19]} 45. Qa8+ {[%clk 0:00:03]}  Kf7 {[%clk 0:00:19]} 46. Qd5+ {[%clk 0:00:04]}  Kg7 {[%clk 0:00:19]} 47. Kh1 {[%clk 0:00:04]}  h4 {[%clk 0:00:18]} 48. Kg1 {[%clk 0:00:05]}  Qa7 {[%clk 0:00:18]} 49. Qd6 {[%clk 0:00:04]}  Qa1+ {[%clk 0:00:14]} 50. Kh2 {[%clk 0:00:04]}  Qe1 {[%clk 0:00:14]} 51. Qf6+ {[%clk 0:00:04]}  Kh7 {[%clk 0:00:13]} 52. Qe7+ {[%clk 0:00:03]}  Kh8 {[%clk 0:00:13]} 53. Qg5 {[%clk 0:00:02]}  Kg7 {[%clk 0:00:11]} 54. Qe7+ {[%clk 0:00:01]}  Kh8 {[%clk 0:00:10]} 55. Qd8+ {[%clk 0:00:02]}  Kh7 {[%clk 0:00:11]} 56. Qg5 {[%clk 0:00:02]}  Kg7 {[%clk 0:00:06]} 57. e6 {[%clk 0:00:02]}  Qxe6 {[%clk 0:00:06]} 58. Qxh4 {[%clk 0:00:02]}  Qxc4 {[%clk 0:00:06]} 59. Qe7+ {[%clk 0:00:02]}  Kg8 {[%clk 0:00:06]} 60. Qe8+ {[%clk 0:00:02]}  Kg7 {[%clk 0:00:07]} 61. Qe7+ {[%clk 0:00:03]}  Kh8 {[%clk 0:00:06]} 62. Qf8+ {[%clk 0:00:02]}  Kh7 {[%clk 0:00:06]} 63. Qe7+ {[%clk 0:00:02]}  Kg8 {[%clk 0:00:06]} 64. Qd8+ {[%clk 0:00:03]}  Kf7 {[%clk 0:00:06]} 65. Qd7+ {[%clk 0:00:03]}  Kf6 {[%clk 0:00:06]} 66. Qd8+ {[%clk 0:00:04]}  Kg7 {[%clk 0:00:05]} 67. Qe7+ {[%clk 0:00:04]} 1/2-1/2


[Site "https://www.chess.com"]

[Event "Titled Tuesday Blitz August 15 Late 2023"]
[White "Korchmar, Vasiliy"]
[Black "Blackburn, Jonathan L B"]
[WhiteFideId "24131750"]
[BlackFideId "1801090"]
[WhiteElo "2682"]
[BlackElo "2438"]
[Result "1-0"]
[Round "9"]
[TimeControl "180+1"]
[Date "2023.08.15"]
[WhiteClock "0:01:17"]
[BlackClock "0:01:08"]
[Board "36"]

1. e4 {[%clk 0:03:00]}  e6 {[%clk 0:02:56]} 2. d4 {[%clk 0:02:59]}  d5 {[%clk 0:02:56]} 3. e5 {[%clk 0:03:00]}  c5 {[%clk 0:02:55]} 4. c3 {[%clk 0:03:01]}  Qb6 {[%clk 0:02:55]} 5. Nf3 {[%clk 0:03:01]}  Bd7 {[%clk 0:02:56]} 6. Be2 {[%clk 0:03:01]}  Bb5 {[%clk 0:02:56]} 7. O-O {[%clk 0:02:51]}  Bxe2 {[%clk 0:02:53]} 8. Qxe2 {[%clk 0:02:52]}  Qa6 {[%clk 0:02:54]} 9. Qd1 {[%clk 0:02:39]}  cxd4 {[%clk 0:02:51]} 10. Nxd4 {[%clk 0:02:28]}  Nc6 {[%clk 0:02:52]} 11. a4 {[%clk 0:02:20]}  Nxd4 {[%clk 0:02:47]} 12. cxd4 {[%clk 0:02:15]}  Ne7 {[%clk 0:02:43]} 13. Nc3 {[%clk 0:02:12]}  Nf5 {[%clk 0:02:39]} 14. g4 {[%clk 0:02:03]}  Nh4 {[%clk 0:02:31]} 15. Bg5 {[%clk 0:02:03]}  Be7 {[%clk 0:02:25]} 16. Bxh4 {[%clk 0:01:45]}  Bxh4 {[%clk 0:02:24]} 17. Nb5 {[%clk 0:01:46]}  Qb6 {[%clk 0:02:07]} 18. Nd6+ {[%clk 0:01:44]}  Ke7 {[%clk 0:02:07]} 19. a5 {[%clk 0:01:40]}  Qa6 {[%clk 0:01:53]} 20. Qc2 {[%clk 0:01:30]}  Rad8 {[%clk 0:01:50]} 21. f4 {[%clk 0:01:23]}  f6 {[%clk 0:01:39]} 22. Qc5 {[%clk 0:01:23]}  Qe2 {[%clk 0:01:11]} 23. Nf5+ {[%clk 0:01:17]}  Kf7 {[%clk 0:01:07]} 24. Qe7+ {[%clk 0:01:17]}  Kg6 {[%clk 0:01:08]} 25. Qxg7# {[%clk 0:01:17]} 1-0


[Site "https://www.chess.com"]

[Event "Titled Tuesday Blitz August 15 Late 2023"]
[White "Altman, Joshua"]
[Black "Daianu, Cristian-Clement"]
[WhiteFideId "426210"]
[BlackFideId "1208926"]
[WhiteElo "2607"]
[BlackElo "2416"]
[Result "1/2-1/2"]
[Round "9"]
[TimeControl "180+1"]
[Date "2023.08.15"]
[WhiteClock "0:00:07"]
[BlackClock "0:00:41"]
[Board "39"]

1. Nf3 {[%clk 0:03:00]}  d5 {[%clk 0:02:58]} 2. d4 {[%clk 0:02:58]}  e6 {[%clk 0:02:59]} 3. c4 {[%clk 0:02:58]}  f5 {[%clk 0:02:59]} 4. Nc3 {[%clk 0:02:57]}  Nf6 {[%clk 0:02:58]} 5. cxd5 {[%clk 0:02:56]}  exd5 {[%clk 0:02:59]} 6. Bf4 {[%clk 0:02:55]}  c6 {[%clk 0:02:58]} 7. e3 {[%clk 0:02:55]}  Bd6 {[%clk 0:02:59]} 8. Bxd6 {[%clk 0:02:53]}  Qxd6 {[%clk 0:03:00]} 9. Bd3 {[%clk 0:02:53]}  O-O {[%clk 0:02:59]} 10. O-O {[%clk 0:02:54]}  Ne4 {[%clk 0:02:57]} 11. Qc2 {[%clk 0:02:48]}  Be6 {[%clk 0:02:51]} 12. Rae1 {[%clk 0:02:47]}  Nd7 {[%clk 0:02:51]} 13. Nd2 {[%clk 0:02:46]}  Rae8 {[%clk 0:02:51]} 14. f3 {[%clk 0:02:46]}  Nxd2 {[%clk 0:02:49]} 15. Qxd2 {[%clk 0:02:46]}  Nf6 {[%clk 0:02:50]} 16. Qf2 {[%clk 0:02:44]}  Qd7 {[%clk 0:02:48]} 17. Ne2 {[%clk 0:02:39]}  Bf7 {[%clk 0:02:46]} 18. Ng3 {[%clk 0:02:34]}  Bg6 {[%clk 0:02:45]} 19. Qc2 {[%clk 0:02:27]}  Nh5 {[%clk 0:02:30]} 20. b4 {[%clk 0:02:14]}  Nxg3 {[%clk 0:02:25]} 21. hxg3 {[%clk 0:02:15]}  Qd6 {[%clk 0:02:16]} 22. b5 {[%clk 0:01:50]}  Qxg3 {[%clk 0:02:14]} 23. bxc6 {[%clk 0:01:49]}  Rc8 {[%clk 0:02:14]} 24. Qb3 {[%clk 0:01:36]}  bxc6 {[%clk 0:02:14]} 25. Rc1 {[%clk 0:01:27]}  f4 {[%clk 0:02:07]} 26. Bxg6 {[%clk 0:01:16]}  hxg6 {[%clk 0:02:07]} 27. e4 {[%clk 0:01:06]}  Qg5 {[%clk 0:01:43]} 28. Rc5 {[%clk 0:00:55]}  Rfd8 {[%clk 0:01:36]} 29. Rfc1 {[%clk 0:00:53]}  Rb8 {[%clk 0:01:35]} 30. Qc3 {[%clk 0:00:41]}  Qe7 {[%clk 0:01:26]} 31. e5 {[%clk 0:00:35]}  g5 {[%clk 0:01:08]} 32. Rxc6 {[%clk 0:00:35]}  g4 {[%clk 0:01:08]} 33. fxg4 {[%clk 0:00:27]}  Qg5 {[%clk 0:01:01]} 34. Qf3 {[%clk 0:00:25]}  Rb4 {[%clk 0:00:59]} 35. Rd6 {[%clk 0:00:12]}  Rxd4 {[%clk 0:00:57]} 36. Rcc6 {[%clk 0:00:05]}  Rd1+ {[%clk 0:00:49]} 37. Qxd1 {[%clk 0:00:04]}  Re8 {[%clk 0:00:47]} 38. Re6 {[%clk 0:00:05]}  Rf8 {[%clk 0:00:47]} 39. Qxd5 {[%clk 0:00:04]}  Kh8 {[%clk 0:00:45]} 40. Rg6 {[%clk 0:00:05]}  Qh4 {[%clk 0:00:44]} 41. Qe4 {[%clk 0:00:05]}  f3 {[%clk 0:00:41]} 42. gxf3 {[%clk 0:00:05]}  Qg3+ {[%clk 0:00:41]} 43. Kh1 {[%clk 0:00:06]}  Qh3+ {[%clk 0:00:40]} 44. Kg1 {[%clk 0:00:06]}  Qg3+ {[%clk 0:00:41]} 45. Kh1 {[%clk 0:00:07]}  Qh3+ {[%clk 0:00:41]} 46. Kg1 {[%clk 0:00:07]}  Qg3+ {[%clk 0:00:41]} 1/2-1/2


[Site "https://www.chess.com"]

[Event "Titled Tuesday Blitz August 15 Late 2023"]
[White "Yurtseven, Melih"]
[Black "Goltsev, Dmitry"]
[WhiteFideId "6312160"]
[BlackFideId "24176710"]
[WhiteElo "2537"]
[BlackElo "2634"]
[Result "1-0"]
[Round "9"]
[TimeControl "180+1"]
[Date "2023.08.15"]
[WhiteClock "0:00:45"]
[BlackClock "0:00:04"]
[Board "43"]

1. b3 {[%clk 0:02:32]}  Nf6 {[%clk 0:02:58]} 2. Bb2 {[%clk 0:02:33]}  g6 {[%clk 0:02:59]} 3. g3 {[%clk 0:02:31]}  Bg7 {[%clk 0:02:59]} 4. Bg2 {[%clk 0:02:32]}  O-O {[%clk 0:02:59]} 5. Nf3 {[%clk 0:02:32]}  Nh5 {[%clk 0:02:59]} 6. d4 {[%clk 0:02:29]}  d5 {[%clk 0:02:59]} 7. O-O {[%clk 0:02:26]}  c6 {[%clk 0:03:00]} 8. c4 {[%clk 0:02:27]}  Bg4 {[%clk 0:02:59]} 9. Nbd2 {[%clk 0:02:20]}  Qd7 {[%clk 0:02:57]} 10. Re1 {[%clk 0:02:20]}  Bh3 {[%clk 0:02:55]} 11. Bh1 {[%clk 0:02:20]}  f6 {[%clk 0:02:44]} 12. e4 {[%clk 0:02:19]}  Nf4 {[%clk 0:02:35]} 13. Qc2 {[%clk 0:02:16]}  Na6 {[%clk 0:02:03]} 14. Re3 {[%clk 0:02:10]}  Bh6 {[%clk 0:01:55]} 15. a3 {[%clk 0:02:05]}  Nc7 {[%clk 0:01:41]} 16. Rae1 {[%clk 0:02:04]}  dxc4 {[%clk 0:00:50]} 17. bxc4 {[%clk 0:02:03]}  Rae8 {[%clk 0:00:48]} 18. e5 {[%clk 0:02:01]}  Bf5 {[%clk 0:00:44]} 19. Qb3 {[%clk 0:01:57]}  Nh3+ {[%clk 0:00:43]} 20. Kf1 {[%clk 0:01:52]}  Bxe3 {[%clk 0:00:44]} 21. Rxe3 {[%clk 0:01:53]}  b6 {[%clk 0:00:37]} 22. Nh4 {[%clk 0:01:47]}  Ng5 {[%clk 0:00:34]} 23. Nxf5 {[%clk 0:01:46]}  Qxf5 {[%clk 0:00:35]} 24. f4 {[%clk 0:01:34]}  Nge6 {[%clk 0:00:12]} 25. Bxc6 {[%clk 0:01:32]}  Rd8 {[%clk 0:00:08]} 26. d5 {[%clk 0:01:01]}  Nc5 {[%clk 0:00:06]} 27. Qc3 {[%clk 0:00:57]}  e6 {[%clk 0:00:03]} 28. exf6 {[%clk 0:00:56]}  Qxf6 {[%clk 0:00:03]} 29. Qxf6 {[%clk 0:00:55]}  Rxf6 {[%clk 0:00:03]} 30. Bxf6 {[%clk 0:00:56]}  Rf8 {[%clk 0:00:03]} 31. Be7 {[%clk 0:00:56]}  Rf7 {[%clk 0:00:01]} 32. Bxc5 {[%clk 0:00:56]}  bxc5 {[%clk 0:00:02]} 33. dxe6 {[%clk 0:00:57]}  Re7 {[%clk 0:00:03]} 34. Bd5 {[%clk 0:00:57]}  Kg7 {[%clk 0:00:03]} 35. Nf3 {[%clk 0:00:57]}  Kf6 {[%clk 0:00:03]} 36. g4 {[%clk 0:00:58]}  Ne8 {[%clk 0:00:03]} 37. g5+ {[%clk 0:00:58]}  Kf5 {[%clk 0:00:04]} 38. Re4 {[%clk 0:00:58]}  Rc7 {[%clk 0:00:02]} 39. Nh4+ {[%clk 0:00:59]}  Kg4 {[%clk 0:00:03]} 40. Ng2 {[%clk 0:00:55]}  Nd6 {[%clk 0:00:03]} 41. Ne3+ {[%clk 0:00:53]}  Kf3 {[%clk 0:00:03]} 42. Re5+ {[%clk 0:00:53]}  Kxf4 {[%clk 0:00:03]} 43. Ng4 {[%clk 0:00:49]}  Kxg4 {[%clk 0:00:03]} 44. e7 {[%clk 0:00:49]}  Ne8 {[%clk 0:00:04]} 45. Bf7 {[%clk 0:00:48]}  Kf4 {[%clk 0:00:04]} 46. Bxe8 {[%clk 0:00:45]}  Kxe5 {[%clk 0:00:04]} 47. Bd7 {[%clk 0:00:45]}  Rxd7 {[%clk 0:00:03]} 48. e8=Q+ {[%clk 0:00:46]}  Kd6 {[%clk 0:00:04]} 49. Qb8+ {[%clk 0:00:42]}  Kc6 {[%clk 0:00:04]} 50. Qa8+ {[%clk 0:00:39]}  Kd6 {[%clk 0:00:04]} 51. Qf8+ {[%clk 0:00:39]}  Kc6 {[%clk 0:00:04]} 52. Qf6+ {[%clk 0:00:38]}  Kc7 {[%clk 0:00:04]} 53. Qe5+ {[%clk 0:00:38]}  Kc6 {[%clk 0:00:04]} 54. Qe6+ {[%clk 0:00:38]}  Kc7 {[%clk 0:00:03]} 55. h4 {[%clk 0:00:38]}  Rd4 {[%clk 0:00:02]} 56. Qe7+ {[%clk 0:00:38]}  Kb6 {[%clk 0:00:02]} 57. Qxh7 {[%clk 0:00:37]}  Ka5 {[%clk 0:00:03]} 58. Qxg6 {[%clk 0:00:36]}  Rxh4 {[%clk 0:00:03]} 59. Qf6 {[%clk 0:00:35]}  Rxc4 {[%clk 0:00:03]} 60. g6 {[%clk 0:00:35]}  Rc1+ {[%clk 0:00:02]} 61. Ke2 {[%clk 0:00:35]}  Rc2+ {[%clk 0:00:03]} 62. Kd1 {[%clk 0:00:35]}  Rg2 {[%clk 0:00:03]} 63. g7 {[%clk 0:00:35]}  Ka4 {[%clk 0:00:03]} 64. Qf7 {[%clk 0:00:35]}  Rg1+ {[%clk 0:00:03]} 65. Ke2 {[%clk 0:00:35]}  Rg2+ {[%clk 0:00:04]} 66. Kf1 {[%clk 0:00:35]}  Rg5 {[%clk 0:00:02]} 67. g8=Q {[%clk 0:00:35]}  Rxg8 {[%clk 0:00:02]} 68. Qxg8 {[%clk 0:00:36]}  Kxa3 {[%clk 0:00:03]} 69. Qc4 {[%clk 0:00:36]}  a5 {[%clk 0:00:02]} 70. Qxc5+ {[%clk 0:00:37]}  Ka4 {[%clk 0:00:02]} 71. Qc4+ {[%clk 0:00:37]}  Ka3 {[%clk 0:00:02]} 72. Qc3+ {[%clk 0:00:37]}  Ka4 {[%clk 0:00:03]} 73. Ke2 {[%clk 0:00:37]}  Kb5 {[%clk 0:00:03]} 74. Qa1 {[%clk 0:00:38]}  Kb4 {[%clk 0:00:03]} 75. Kd2 {[%clk 0:00:39]}  a4 {[%clk 0:00:03]} 76. Kc1 {[%clk 0:00:40]}  Kb3 {[%clk 0:00:04]} 77. Kb1 {[%clk 0:00:41]}  a3 {[%clk 0:00:04]} 78. Qa2+ {[%clk 0:00:42]}  Kb4 {[%clk 0:00:04]} 79. Kc1 {[%clk 0:00:43]}  Ka4 {[%clk 0:00:04]} 80. Kc2 {[%clk 0:00:43]}  Kb4 {[%clk 0:00:05]} 81. Kd3 {[%clk 0:00:43]}  Ka4 {[%clk 0:00:05]} 82. Kc3 {[%clk 0:00:44]}  Ka5 {[%clk 0:00:05]} 83. Kb3 {[%clk 0:00:45]}  Kb5 {[%clk 0:00:04]} 84. Qxa3 {[%clk 0:00:45]} 1-0


[Site "https://www.chess.com"]

[Event "Titled Tuesday Blitz August 15 Late 2023"]
[White "Mendez Fortes, Eduardo Jesus"]
[Black "Jovic, Stanoje"]
[WhiteFideId "3502376"]
[BlackFideId "905020"]
[WhiteElo "2605"]
[BlackElo "2497"]
[Result "1-0"]
[Round "9"]
[TimeControl "180+1"]
[Date "2023.08.15"]
[WhiteClock "0:00:16"]
[BlackClock "0:00:00"]
[Board "45"]

1. e4 {[%clk 0:03:00]}  c6 {[%clk 0:02:59]} 2. d4 {[%clk 0:03:00]}  d5 {[%clk 0:02:59]} 3. e5 {[%clk 0:03:01]}  c5 {[%clk 0:02:59]} 4. dxc5 {[%clk 0:03:00]}  e6 {[%clk 0:02:59]} 5. a3 {[%clk 0:03:01]}  Bxc5 {[%clk 0:02:59]} 6. b4 {[%clk 0:03:01]}  Be7 {[%clk 0:02:59]} 7. Nf3 {[%clk 0:02:55]}  f6 {[%clk 0:02:57]} 8. c4 {[%clk 0:02:52]}  Nc6 {[%clk 0:02:51]} 9. cxd5 {[%clk 0:02:46]}  exd5 {[%clk 0:02:47]} 10. Bb2 {[%clk 0:02:44]}  Bg4 {[%clk 0:02:43]} 11. Be2 {[%clk 0:02:43]}  Nh6 {[%clk 0:02:16]} 12. O-O {[%clk 0:02:37]}  O-O {[%clk 0:02:13]} 13. exf6 {[%clk 0:02:33]}  Bxf6 {[%clk 0:02:08]} 14. Bxf6 {[%clk 0:02:32]}  Qxf6 {[%clk 0:02:07]} 15. Nbd2 {[%clk 0:02:24]}  Rae8 {[%clk 0:02:03]} 16. h3 {[%clk 0:02:14]}  Bc8 {[%clk 0:01:51]} 17. Bd3 {[%clk 0:02:10]}  Nf5 {[%clk 0:01:46]} 18. Nb3 {[%clk 0:02:07]}  Kh8 {[%clk 0:01:39]} 19. Rc1 {[%clk 0:02:02]}  Nd6 {[%clk 0:01:36]} 20. Nfd2 {[%clk 0:01:42]}  Qg5 {[%clk 0:01:30]} 21. Kh1 {[%clk 0:01:37]}  Qh4 {[%clk 0:01:26]} 22. Nf3 {[%clk 0:01:34]}  Qf4 {[%clk 0:01:22]} 23. Nh2 {[%clk 0:01:30]}  Ne4 {[%clk 0:01:18]} 24. Bxe4 {[%clk 0:01:29]}  dxe4 {[%clk 0:01:19]} 25. Qe2 {[%clk 0:01:23]}  Ne5 {[%clk 0:01:16]} 26. Nc5 {[%clk 0:01:04]}  Nd3 {[%clk 0:01:14]} 27. Nxd3 {[%clk 0:00:59]}  exd3 {[%clk 0:01:15]} 28. Qxd3 {[%clk 0:00:59]}  Rd8 {[%clk 0:01:10]} 29. Qg3 {[%clk 0:00:57]}  Qxg3 {[%clk 0:01:01]} 30. fxg3 {[%clk 0:00:56]}  Rxf1+ {[%clk 0:00:59]} 31. Nxf1 {[%clk 0:00:54]}  Be6 {[%clk 0:00:51]} 32. Kg1 {[%clk 0:00:52]}  h6 {[%clk 0:00:48]} 33. Rc7 {[%clk 0:00:48]}  Rd1 {[%clk 0:00:45]} 34. Kf2 {[%clk 0:00:46]}  Ra1 {[%clk 0:00:44]} 35. Rc3 {[%clk 0:00:32]}  Ra2+ {[%clk 0:00:42]} 36. Kg1 {[%clk 0:00:32]}  b5 {[%clk 0:00:38]} 37. Ne3 {[%clk 0:00:31]}  Kh7 {[%clk 0:00:33]} 38. g4 {[%clk 0:00:31]}  Kg6 {[%clk 0:00:32]} 39. Nc2 {[%clk 0:00:20]}  Kf6 {[%clk 0:00:26]} 40. Nd4 {[%clk 0:00:19]}  Bc4 {[%clk 0:00:16]} 41. Re3 {[%clk 0:00:18]}  Rd2 {[%clk 0:00:13]} 42. Nf3 {[%clk 0:00:17]}  g5 {[%clk 0:00:00]} 43. Nxd2 {[%clk 0:00:16]} 1-0


[Site "https://www.chess.com"]

[Event "Titled Tuesday Blitz August 15 Late 2023"]
[White "brm72"]
[Black "Vlassov, Nikolai"]
[BlackFideId "4103360"]
[WhiteElo "2488"]
[BlackElo "2602"]
[Result "1-0"]
[Round "9"]
[TimeControl "180+1"]
[Date "2023.08.15"]
[WhiteClock "0:00:01"]
[BlackClock "0:00:00"]
[Board "46"]

1. e4 {[%clk 0:03:00]}  Nc6 {[%clk 0:02:58]} 2. Nf3 {[%clk 0:03:00]}  d5 {[%clk 0:02:57]} 3. exd5 {[%clk 0:03:00]}  Qxd5 {[%clk 0:02:57]} 4. Nc3 {[%clk 0:03:01]}  Qa5 {[%clk 0:02:56]} 5. d4 {[%clk 0:03:00]}  Bg4 {[%clk 0:02:55]} 6. Bb5 {[%clk 0:02:44]}  O-O-O {[%clk 0:02:54]} 7. Bxc6 {[%clk 0:02:42]}  bxc6 {[%clk 0:02:55]} 8. h3 {[%clk 0:02:41]}  Qh5 {[%clk 0:02:52]} 9. Qd3 {[%clk 0:02:31]}  Bxf3 {[%clk 0:02:52]} 10. gxf3 {[%clk 0:02:25]}  e6 {[%clk 0:02:51]} 11. Qa6+ {[%clk 0:01:52]}  Kd7 {[%clk 0:02:51]} 12. Qe2 {[%clk 0:01:40]}  Bb4 {[%clk 0:02:46]} 13. Bd2 {[%clk 0:01:38]}  Ne7 {[%clk 0:02:42]} 14. Ne4 {[%clk 0:01:26]}  Bxd2+ {[%clk 0:02:14]} 15. Nxd2 {[%clk 0:01:27]}  Qb5 {[%clk 0:02:03]} 16. Nc4 {[%clk 0:01:09]}  Ng6 {[%clk 0:01:26]} 17. O-O-O {[%clk 0:01:06]}  Ke7 {[%clk 0:01:21]} 18. b3 {[%clk 0:01:01]}  a5 {[%clk 0:01:10]} 19. h4 {[%clk 0:00:58]}  a4 {[%clk 0:01:06]} 20. h5 {[%clk 0:00:56]}  axb3 {[%clk 0:00:59]} 21. cxb3 {[%clk 0:00:55]}  Nf4 {[%clk 0:00:56]} 22. Qe4 {[%clk 0:00:54]}  Nd5 {[%clk 0:00:48]} 23. Rd2 {[%clk 0:00:47]}  Ra8 {[%clk 0:00:44]} 24. h6 {[%clk 0:00:32]}  g5 {[%clk 0:00:39]} 25. Re1 {[%clk 0:00:16]}  Nc3 {[%clk 0:00:35]} 26. Qe5 {[%clk 0:00:13]}  Nxa2+ {[%clk 0:00:33]} 27. Kb2 {[%clk 0:00:13]}  Nb4 {[%clk 0:00:28]} 28. Qxc7+ {[%clk 0:00:12]}  Kf6 {[%clk 0:00:24]} 29. Qe5+ {[%clk 0:00:11]}  Qxe5 {[%clk 0:00:20]} 30. dxe5+ {[%clk 0:00:11]}  Kg6 {[%clk 0:00:20]} 31. Rd7 {[%clk 0:00:10]}  Ra2+ {[%clk 0:00:18]} 32. Kc3 {[%clk 0:00:10]}  Nd5+ {[%clk 0:00:18]} 33. Kd4 {[%clk 0:00:09]}  Rxf2 {[%clk 0:00:17]} 34. Ke4 {[%clk 0:00:05]}  Rb8 {[%clk 0:00:13]} 35. Rb1 {[%clk 0:00:02]}  Rc2 {[%clk 0:00:09]} 36. Kd4 {[%clk 0:00:02]}  Nc3 {[%clk 0:00:05]} 37. Rg1 {[%clk 0:00:01]}  Rxb3 {[%clk 0:00:03]} 38. Nd6 {[%clk 0:00:01]}  Nb5+ {[%clk 0:00:00]} 39. Ke4 {[%clk 0:00:01]} 1-0


[Site "https://www.chess.com"]